Workbook

Sheet Hoja1
A1: LIBRO VENTAS POR SERVICIOS SENASA
A2: INGRESOS Y EGRESOS DE MARZO DEL 2023
A3: HOSPITAL PROVINCIAL RICARDO LIMARDO
A5: Fecha | B5: Ck. No. | C5: Beneficiario | D5: Concepto | E5: Ingresos | F5: Egresos | G5: Balance
A6: 2023-03-01 | C6: BALANCE ANTERIOR | D6: B/A | G6: 9,044,843.08
A7: 2023-03-01 | C7: 532203614 | D7: ODONTOLOGIA | E7: 5,550.00 | G7: =+G6+E7 -> 9,050,393.08
A8: 2023-03-01 | C8: 532203615 | D8: ODONTOLOGIA | E8: 8,050.00 | G8: 9,058,443.08
A9: 2023-03-01 | C9: 532203616 | D9: CAFETERIA | E9: 6,245.00 | G9: 9,064,688.08
A10: 2023-03-01 | C10: 532203617 | D10: CAFETERIA | E10: 14,085.00 | G10: 9,078,773.08
A11: 2023-03-02 | C11: 516849340 | D11: CAFETERIA | E11: 16,785.00 | G11: 9,095,558.08
A12: 2023-03-02 | C12: 540027074 | D12: CAFETERIA | E12: 9,670.00 | G12: 9,105,228.08
A13: 2023-03-02 | C13: 540027075 | D13: ODONTOLOGIA | E13: 6,460.00 | G13: 9,111,688.08
A14: 2023-03-02 | C14: 540027076 | D14: ODONTOLOGIA | E14: 7,200.00 | G14: 9,118,888.08
A15: 2023-03-02 | B15: 29815988876 | C15: TOMAS SATOSQUY HELENA ABREU. | D15: AVANCE DEL 60% POR SERVICIOS DE TRABAJO. | F15: 47,377.98 | G15: =+G14-F15 -> 9,071,510.10
A16: 2023-03-03 | B16: 29827416085 | C16: OSVALDITO ORTIZ. 10% | D16: FLETES A STO.DGO. Y STGO. PROMESE CAL. | F16: 53,100.00 | G16: =+G15-F16 -> 9,018,410.10
A17: 2023-03-03 | C17: 516851981 | D17: ODONTOLOGIA | E17: 4,350.00 | G17: 9,022,760.10
A18: 2023-03-03 | C18: 516851982 | D18: ODONTOLOGIA | E18: 1,310.00 | G18: 9,024,070.10
A19: 2023-03-03 | C19: 516851983 | D19: CAFETERIA | E19: 8,180.00 | G19: 9,032,250.10
A20: 2023-03-03 | C20: 516851984 | D20: CAFETERIA | E20: 13,825.00 | G20: 9,046,075.10
A21: 2023-03-06 | C21: 543657987 | D21: ODONTOLOGIA | E21: 6,475.00 | G21: 9,052,550.10
A22: 2023-03-06 | C22: 543657988 | D22: ODONTOLOGIA | E22: 6,600.00 | G22: 9,059,150.10
A23: 2023-03-06 | C23: 543657989 | D23: CAFETERIA | E23: 8,225.00 | G23: 9,067,375.10
A24: 2023-03-06 | C24: 543657990 | D24: CAFETERIA | E24: 3,000.00 | G24: 9,070,375.10
A25: 2023-03-06 | C25: 543657991 | D25: CAFETERIA | E25: 14,015.00 | G25: 9,084,390.10
A26: 2023-03-06 | B26: 15212 | C26: CK-NULO | D26: ERROR DE SELLO. | F26: 0 | G26: =+G25-F26 -> 9,084,390.10
A27: 2023-03-06 | B27: 15213 | C27: SUANY S. ALMONTE BALBUENA. | D27: REPOSICION DE FONDOS CAJA CHICA | F27: 20,000.00 | G27: =+G26-F27 -> 9,064,390.10
A28: 2023-03-06 | B28: 15214 | C28: ANGEL JOEL MELENDEZ MARTINEZ | D28: PAGO DERECHOS ADQUIRIDOS. | F28: 13,429.44 | G28: 9,050,960.66
A29: 2023-03-06 | B29: 15215 | C29: JOSELITO ABREU VASQUEZ.2% | D29: REPARACION DE PUERTA PRINCIPAL DE LA COCINA | F29: 2,940.00 | G29: 9,048,020.66
A30: 2023-03-06 | B30: 15216 | C30: PANIFICADORA SANTA RITA, SRL. | D30: COMPRA DE ALIMENTOS (PAN). | F30: 46,056.00 | G30: 9,001,964.66
A31: 2023-03-06 | B31: 29856378987 | C31: HAMLET CASTILLO 2%. | D31: FLETE SANTO DOMINGO. | F31: 2,450.00 | G31: 8,999,514.66
A32: 2023-03-06 | B32: 29858485231 | C32: MIGUEL LEONARDO LOPEZ.10% | D32: ALQUILER DE EQUIPOS PARA ESTUDIOS. | F32: 117,000.00 | G32: 8,882,514.66
A33: 2023-03-06 | B33: 29858534661 | C33: NEYDA M. CRUZ LANTIGUA.10% | D33: PAGO ESTUDIOS REALIZADOS. | F33: 69,030.00 | G33: 8,813,484.66
A34: 2023-03-07 | B34: 29870173997 | C34: CARLOS MANUEL CASTILLO NUÑEZ.2% | D34: SERVICIOS DE MANTENIMIENTO Y SOLDADURA. | F34: 11,760.00 | G34: 8,801,724.66
A35: 2023-03-07 | B35: 29870115624 | C35: HAMLET CASTILLO 2%. | D35: FLETE SANTO DOMINGO. | F35: 2,450.00 | G35: 8,799,274.66
A36: 2023-03-07 | C36: 543726538 | D36: CAFETERIA | E36: 9,010.00 | G36: 8,808,284.66
A37: 2023-03-07 | C37: 543726539 | D37: CAFETERIA | E37: 13,935.00 | G37: 8,822,219.66
A38: 2023-03-07 | C38: 543726540 | D38: ODONTOLOGIA | E38: 3,410.00 | G38: 8,825,629.66
A39: 2023-03-07 | C39: 543726542 | D39: ODONTOLOGIA | E39: 8,900.00 | G39: 8,834,529.66
A40: 2023-03-08 | C40: 543658662 | D40: CAFETERIA | E40: 7,090.00 | G40: 8,841,619.66
A41: 2023-03-08 | C41: 543658663 | D41: CAFETERIA | E41: 14,840.00 | G41: 8,856,459.66
A42: 2023-03-08 | C42: 543658664 | D42: ODONTOLOGIA | E42: 13,700.00 | G42: 8,870,159.66
A43: 2023-03-08 | C43: 543658665 | D43: ODONTOLOGIA | E43: 16,400.00 | G43: 8,886,559.66
A44: 2023-03-08 | C44: 20755103 | D44: ARS GMA | E44: 1,320.48 | G44: 8,887,880.14
A45: 2023-03-08 | C45: 20755104 | D45: ARS APS | E45: 3,024.50 | G45: 8,890,904.64
A46: 2023-03-09 | C46: 543657371 | D46: CAFETERIA | E46: 9,835.00 | G46: 8,900,739.64
A47: 2023-03-09 | C47: 543657372 | D47: CAFETERIA | E47: 12,840.00 | G47: 8,913,579.64
A48: 2023-03-09 | C48: 543657373 | D48: ODONTOLOGIA | E48: 9,270.00 | G48: 8,922,849.64
A49: 2023-03-09 | C49: 543657374 | D49: ODONTOLOGIA | E49: 15,345.00 | G49: 8,938,194.64
A50: 2023-03-09 | B50: 29891376388 | C50: TOMAS SATOSQUY HELENA ABREU. | D50: SALDO DEL 40% DE LA FACT.0115 POR SERVICIOS DE TRABAJO. | F50: 31,585.32 | G50: =+G49-F50 -> 8,906,609.32
A51: 2023-03-09 | B51: 29891424642 | C51: CORPORACION DE ACUEDUCTO Y ALC. | D51: SERVICIOS DE AGUA. | F51: 82,749.00 | G51: =+G50-F51 -> 8,823,860.32
A52: 2023-03-09 | B52: 29891457074 | C52: TELECABLE CENTRAL PUERTO PLATA PP,SRL. | D52: SERVICIOS DE INTERNET. | F52: 20,105.77 | G52: 8,803,754.55
A53: 2023-03-10 | C53: 543659412 | D53: ODONTOLOGIA | E53: 5,070.00 | G53: 8,808,824.55
A54: 2023-03-10 | C54: 543659413 | D54: ODONTOLOGIA | E54: 3,250.00 | G54: 8,812,074.55
A55: 2023-03-10 | C55: 543659414 | D55: CAFETERIA | E55: 6,120.00 | G55: 8,818,194.55
A56: 2023-03-10 | C56: 543659415 | D56: CAFETERIA | E56: 10,560.00 | G56: 8,828,754.55
A57: 2023-03-10 | B57: 4524000000025 | C57: TRANSFERENCIA BANCO | D57: ARS SENASA CONTRIBUTIVO | E57: 393,977.18 | G57: 9,222,731.73
A58: 2023-03-13 | C58: 555270319 | D58: CAFETERIA | E58: 6,825.00 | G58: 9,229,556.73
A59: 2023-03-13 | C59: 555270320 | D59: CAFETERIA | E59: 3,635.00 | G59: 9,233,191.73
A60: 2023-03-13 | C60: 555270321 | D60: CAFETERIA | E60: 14,235.00 | G60: 9,247,426.73
A61: 2023-03-13 | C61: 555270322 | D61: ODONTOLOGIA | E61: 2,700.00 | G61: 9,250,126.73
A62: 2023-03-13 | C62: 555270323 | D62: ODONTOLOGIA | E62: 3,950.00 | G62: 9,254,076.73
A63: 2023-03-14 | C63: 555270466 | D63: ODONTOLOGIA | E63: 6,375.00 | G63: 9,260,451.73
A64: 2023-03-14 | C64: 555270467 | D64: ODONTOLOGIA | E64: 15,200.00 | G64: 9,275,651.73
A65: 2023-03-14 | C65: 555270468 | D65: CAFETERIA | E65: 8,860.00 | G65: 9,284,511.73
A66: 2023-03-14 | C66: 555270469 | D66: CAFETERIA | E66: 10,865.00 | G66: 9,295,376.73
A67: 2023-03-15 | B67: 29952532660 | C67: CARLOS DAVID TAVAREZ SANTOS | D67: SERVICIOS DE CATERING P/CAFETERIA | F67: 18,620.00 | G67: =+G66-F67 -> 9,276,756.73
A68: 2023-03-15 | C68: 555271230 | D68: ODONTOLOGIA | E68: 7,650.00 | G68: 9,284,406.73
A69: 2023-03-15 | C69: 555271231 | D69: ODONTOLOGIA | E69: 6,950.00 | G69: 9,291,356.73
A70: 2023-03-15 | C70: 555271232 | D70: CAFETERIA | E70: 10,320.00 | G70: 9,301,676.73
A71: 2023-03-15 | C71: 555271233 | D71: CAFETERIA | E71: 15,800.00 | G71: =+G70+E71 -> 9,317,476.73
A72: 2023-03-16 | B72: 4524000000600 | C72: HOSPITAL RICARDO LIMARDO | D72: PAGO INCENTIVO /JUNIO DICIEMBRE 2022 | F72: 5,884,365.61 | G72: =+G71-F72 -> 3,433,111.12
A73: 2023-03-16 | B73: 4524000000221 | C73: HOSPITAL RICARDO LIMARDO | D73: PAGO INCENTIVO /JUNIO DICIEMBRE 2022 | F73: 1,572,133.33 | G73: =+G72-F73 -> 1,860,977.79
A74: 2023-03-16 | B74: 4524000000011 | C74: HOSPITAL RICARDO LIMARDO | D74: PAGO INCENTIVO /JUNIO DICIEMBRE 2022 | F74: 131,910.07 | G74: 1,729,067.72
A75: 2023-03-16 | B75: 29973223988 | C75: HOSPITAL RICARDO LIMARDO | D75: PAGO INCENTIVO /JUNIO DICIEMBRE 2022 | F75: 9,057.08 | G75: 1,720,010.64
A76: 2023-03-16 | B76: 4524000000025 | C76: TRANSFERENCIA BANCO | D76: ARS MONUMENTAL | E76: 27,436.39 | G76: =+G75+E76 -> 1,747,447.03
A77: 2023-03-16 | C77: 555271823 | D77: ODONTOLOGIA | E77: 5,060.00 | G77: 1,752,507.03
A78: 2023-03-16 | C78: 555271825 | D78: ODONTOLOGIA | E78: 3,900.00 | G78: 1,756,407.03
A79: 2023-03-16 | C79: 555271827 | D79: CAFETERIA | E79: 7,800.00 | G79: 1,764,207.03
A80: 2023-03-16 | C80: 555271828 | D80: CAFETERIA | E80: 17,655.00 | G80: 1,781,862.03
A81: 2023-03-17 | C81: 555268425 | D81: CAFETERIA | E81: 7,825.00 | G81: 1,789,687.03
A82: 2023-03-17 | C82: 555268426 | D82: CAFETERIA | E82: 14,065.00 | G82: 1,803,752.03
A83: 2023-03-17 | C83: 555268427 | D83: ODONTOLOGIA | E83: 4,560.00 | G83: 1,808,312.03
A84: 2023-03-17 | C84: 555268428 | D84: ODONTOLOGIA | E84: 2,710.00 | G84: 1,811,022.03
A85: 2023-03-17 | B85: 29980142642 | C85: HOSPITAL RICARDO LIMARDO | D85: PAGO INCENTIVO /JUNIO DICIEMBRE 2022 | F85: 3,279.00 | G85: 1,811,022.03
A86: 2023-03-17 | B86: 29980187042 | C86: HOSPITAL RICARDO LIMARDO | D86: PAGO INCENTIVO /JUNIO DICIEMBRE 2022 | F86: 8,925.34 | G86: 1,811,022.03
A87: 2023-03-20 | B87: 4524000036639 | C87: TRANSFERENCIA BANCO | D87: ARS UNIVERSAL | E87: 4,053.00 | G87: 1,815,075.03
A88: 2023-03-20 | C88: 555273529 | D88: ODONTOLOGIA | E88: 6,460.00 | G88: 1,821,535.03
A89: 2023-03-20 | C89: 555273530 | D89: ODONTOLOGIA | E89: 9,100.00 | G89: 1,830,635.03
A90: 2023-03-20 | C90: 555273531 | D90: CAFETERIA | E90: 8,510.00 | G90: 1,839,145.03
A91: 2023-03-20 | C91: 555273533 | D91: CAFETERIA | E91: 4,290.00 | G91: 1,843,435.03
A92: 2023-03-20 | C92: 555273534 | D92: CAFETERIA | E92: 15,895.00 | G92: 1,859,330.03
A93: 2023-03-21 | C93: 555275125 | D93: ODONTOLOGIA | E93: 10,860.00 | G93: 1,870,190.03
A94: 2023-03-21 | C94: 555275126 | D94: ODONTOLOGIA | E94: 19,500.00 | G94: 1,889,690.03
A95: 2023-03-21 | C95: 555275127 | D95: CAFETERIA | E95: 7,670.00 | G95: 1,897,360.03
A96: 2023-03-21 | C96: 555275128 | D96: CAFETERIA | E96: 14,170.00 | G96: 1,911,530.03
A97: 2023-03-21 | B97: 30021927082 | C97: HAMLET CASTILLO 2%. | D97: FLETE SANTO DOMINGO. | F97: 2,450.00 | G97: =+G96-F97 -> 1,909,080.03
A98: 2023-03-21 | B98: 30021831443 | C98: CESAR ELIAS NUÑEZ CORDERO | D98: DESMONTE DE MEDICAMENTOS | F98: 13,034.00 | G98: =+G97-F98 -> 1,896,046.03
A99: 2023-03-21 | B99: 30021780940 | C99: ALMACEN SILVERIO PEREZ, SRL | D99: ALIMENTOS,PLASTICOS ,PAPEL,LIMPIEZA | F99: 828,770.62 | G99: 1,067,275.41
A100: 2023-03-22 | C100: 555272040 | D100: ODONTOLOGIA | E100: 26,950.00 | G100: =+G99+E100 -> 1,094,225.41
A101: 2023-03-22 | C101: 555272043 | D101: CAFETERIA | E101: 14,070.00 | G101: 1,108,295.41
A102: 2023-03-22 | C102: 555272044 | D102: CAFETERIA | E102: 8,525.00 | G102: 1,116,820.41
A103: 2023-03-22 | C103: 555272046 | D103: ODONTOLOGIA | E103: 7,110.00 | G103: 1,123,930.41
A104: 2023-03-23 | B104: 4524000000023 | C104: TRANSFERENCIA BANCO | D104: ARS RENACER | E104: 35,040.06 | G104: 1,158,970.47
A105: 2023-03-23 | C105: 555273071 | D105: ODONTOLOGIA | E105: 5,600.00 | G105: 1,164,570.47
A106: 2023-03-23 | C106: 555273072 | D106: ODONTOLOGIA | E106: 5,800.00 | G106: 1,170,370.47
A107: 2023-03-23 | C107: 555273073 | D107: CAFETERIA | E107: 10,660.00 | G107: 1,181,030.47
A108: 2023-03-23 | C108: 555273074 | D108: CAFETERIA | E108: 16,075.00 | G108: 1,197,105.47
A109: 2023-03-24 | B109: 4524000000053 | C109: TRANSFERENCIA BANCO | D109: SENASA ODONTOLOGIA | E109: 30,000.00 | G109: 1,227,105.47
A110: 2023-03-24 | B110: 4524000000001 | C110: TRANSFERENCIA BANCO | D110: SENASA SUBSIDIADO FEBRERO2023 | E110: 9,876,588.55 | G110: 11,103,694.02
A111: 2023-03-24 | C111: 555159539 | D111: CAFETERIA | E111: 9,750.00 | G111: 11,113,444.02
A112: 2023-03-24 | C112: 555159540 | D112: CAFETERIA | E112: 12,375.00 | G112: 11,125,819.02
A113: 2023-03-24 | C113: 555159541 | D113: ODONTOLOGIA | E113: 4,760.00 | G113: 11,130,579.02
A114: 2023-03-24 | C114: 555159542 | D114: ODONTOLOGIA | E114: 500.00 | G114: 11,131,079.02
A115: 2023-03-24 | B115: 4524000000006 | C115: TRANSFERENCIA BANCO | D115: ARS FUTURO | E115: 83,333.53 | G115: 11,214,412.55
A116: 2023-03-24 | B116: 30057424716 | C116: MALENNY ALEXANDRA FELIZ MATOS | D116: DEVOLUCION | F116: 8,000.00 | G116: =+G115-F116 -> 11,206,412.55
A117: 2023-03-24 | B117: 30067270174 | C117: ANTONIO FCO. MARTINEZ DE LEON | D117: COMPRA DE ATAUD | F117: 10,450.00 | G117: =+G116-F117 -> 11,195,962.55
A118: 2023-03-24 | B118: 30067322472 | C118: LERVY ANDRES ROSA ORTIZ | D118: TRABAJO DE FUGA DE AGUA PABELLON A | F118: 2,940.00 | G118: 11,193,022.55
A119: 2023-03-24 | B119: 15217 | C119: COMPAÑÍA DOMINICANA DE TELEFONOS,S.A | D119: SERVICIOS DE TELEFONOS FLOTAS | F119: 56,076.52 | G119: 11,136,946.03
A120: 2023-03-24 | B120: 15218 | C120: COMPAÑÍA DOMINICANA DE TELEFONOS,S.A | D120: SERVICIOS DE TELEFONOS LOCALES (SUMARIA) | F120: 232,673.22 | G120: 10,904,272.81
A121: 2023-03-27 | C121: 526437186 | D121: ODONTOLOGIA | E121: 4,550.00 | G121: =+G120+E121 -> 10,908,822.81
A122: 2023-03-27 | C122: 526437187 | D122: ODONTOLOGIA | E122: 18,200.00 | G122: 10,927,022.81
A123: 2023-03-27 | C123: 526437188 | D123: CAFETERIA | E123: 6,715.00 | G123: 10,933,737.81
A124: 2023-03-27 | C124: 526437189 | D124: CAFETERIA | E124: 6,160.00 | G124: 10,939,897.81
A125: 2023-03-27 | C125: 526437190 | D125: CAFETERIA | E125: 14,760.00 | G125: 10,954,657.81
A126: 2023-03-27 | B126: 30104810515 | C126: HAMLET CASTILLO | D126: FLETE A STO DGO A LLEVAR DOCUMENTOS A SNS EL DIA 24/03/2023 | F126: 2,450.00 | G126: =+G125-F126 -> 10,952,207.81
A127: 2023-03-27 | B127: 30104854389 | C127: AC BIOMATERIALES DOMINICANOS,SRL | D127: COMPRA DE MATERIAL MEDICO QX | F127: 105,682.45 | G127: 10,846,525.36
A128: 2023-03-27 | B128: 30104890169 | C128: ATGO,SRL | D128: COMPRA DE MATERIAL MEDICO QX | F128: 33,487.50 | G128: 10,813,037.86
A129: 2023-03-27 | B129: 30104936373 | C129: BIO NUCLEAR,S.A. | D129: COMPRA DE MATERIAL MEDICO QX Y PAPEL | F129: 127,780.02 | G129: 10,685,257.84
A130: 2023-03-27 | B130: 30104964662 | C130: BRENMARFA IMPORT,SRL | D130: COMPRA DE MEDICAMENTOS | F130: 136,800.00 | G130: 10,548,457.84
A131: 2023-03-27 | B131: 30105002992 | C131: CEDUCOMPP,SRL | D131: COMPRA DE MATERIAL DE OFICINA | F131: 55,562.58 | G131: 10,492,895.26
A132: 2023-03-27 | B132: 30105036344 | C132: CENTRO MEDICO BOURNIGAL,S.A.S. | D132: COMPRA DE MEDICAMENTOS , MATERIAL MEDICO QX | F132: 9,088.41 | G132: 10,483,806.85
A133: 2023-03-27 | B133: 30105151769 | C133: COMBUSTIBLE Y DERIVADOS DEL NORTE,SRL | D133: COMPRA DE GASOLINA Y GAS-OIL | F133: 66,811.02 | G133: 10,416,995.83
A134: 2023-03-27 | B134: 30105192041 | C134: CLINIMED,SRL | D134: COMPRA DE MEDICAMENTOS , MATERIAL MEDICO QX | F134: 136,404.50 | G134: 10,280,591.33
A135: 2023-03-27 | B135: 30105233101 | C135: DOMINGO CASTILLO | D135: COMPRA DE FRUTAS Y VEGETALES | F135: 312,464.50 | G135: 9,968,126.83
A136: 2023-03-27 | B136: 30105269531 | C136: EXP DOMINICANA,SRL | D136: COMPRA DE MEDICAMENTOS , MATERIAL MEDICO QX | F136: 136,057.00 | G136: 9,832,069.83
A137: 2023-03-27 | B137: 30105300823 | C137: AYUNTAMIENTO MUNICIPAL PUERTO PLATA, | D137: SEVICIOS DE LIMPIEZA DE BASURA DE ESTA INSTIT MES DE FEBRERO 2023 | F137: 14,250.00 | G137: 9,817,819.83
A138: 2023-03-27 | B138: 30105391365 | C138: ESTERILIZACION Y EQUIPOS DEL CARIBE JOSE YABE,SRL | D138: SERVICIOS DE MANTT. REPARACION DE AUTOCLAVE MEDICO | F138: 128,029.00 | G138: 9,689,790.83
A139: 2023-03-27 | B139: 30105435458 | C139: FARACH,S.A | D139: COMPRA DE MEDICAMENTOS | F139: 149,288.70 | G139: 9,540,502.13
A140: 2023-03-27 | B140: 30105491228 | C140: FEC BIOMEDICAL, SRL | D140: SERVICIOS DE REPARACION Y MANTT. EQUIPOS, COMPRA DE SENSOR SILICONADO | F140: 171,534.00 | G140: 9,368,968.13
A141: 2023-03-27 | B141: 30105541491 | C141: FERMEDCA COMERCIAL,SRL | D141: COMPRA DE MATERIAL MEDICO QX | F141: 16,387.50 | G141: 9,352,580.63
A142: 2023-03-28 | B142: 30113725177 | C142: FRIFARMA, SRL | D142: COMPRA DE MEDICAMENTOS | F142: 50,587.50 | G142: 9,301,993.13
A143: 2023-03-28 | B143: 30113773278 | C143: GALANES MAGICOS,SRL | D143: COMPRA DE ALIMENTOS , PAPEL, PLASTICOS Y LIMPIEZA | F143: 183,720.59 | G143: 9,118,272.54
A144: 2023-03-28 | B144: 30113810119 | C144: GAS ANTILLANO,S.A,S | D144: COMPRA DE GAS | F144: 62,180.65 | G144: 9,056,091.89
A145: 2023-03-28 | B145: 30113858426 | C145: HOSPIFAR,SRL | D145: COMPRA DE MEDICAMENTOS , MATERIAL MEDICO QX | F145: 159,203.69 | G145: 8,896,888.20
A146: 2023-03-28 | B146: 30113895713 | C146: ING.EDGAR MARTINEZ, SRL | D146: COMPRA DE HERRAMIENTA MENORES, PINTURA Y ELECTRICOS | F146: 54,054.96 | G146: 8,842,833.24
A147: 2023-03-28 | B147: 30113951566 | C147: IMPRESOS CLARK,SRL | D147: IMPRESOS Y ENCUADERNACIONES | F147: 35,181.31 | G147: 8,807,651.93
A148: 2023-03-28 | B148: 30113993388 | C148: INNOVACIONES MEDICAS DEL CARIBE, SRL. | D148: COMPRA DE MEDICAMENTOS , MATERIAL MEDICO QX | F148: 237,464.70 | G148: 8,570,187.23
A149: 2023-03-28 | B149: 30114050777 | C149: INVERSIONES AQUARIUS, SRL. | D149: COMPRA DE AGUA Y HIELO PARA LA CAFETERIA | F149: 37,715.00 | G149: 8,532,472.23
A150: 2023-03-28 | B150: 30114081129 | C150: JUAN LUIS ALMONTE REYES | D150: COMPRA DE ALIMENTOS , PLASTICOS PAPEL Y LIMPIEZA | F150: 481,600.57 | G150: 8,050,871.66
A151: 2023-03-28 | B151: 30114109390 | C151: LA CASA FERRETERA DE PURTO PLATA,SRL | D151: COMPRA DE HERRAMIENTAS MENORES,ELECTRICO,METAL | F151: 50,781.72 | G151: 8,000,089.94
A152: 2023-03-28 | B152: 30114140512 | C152: MACARIO FARMA. SRL. | D152: COMPRA DE MEDICAMENTOS , MATERIAL MEDICO QX | F152: 6,503.00 | G152: 7,993,586.94
A153: 2023-03-28 | B153: 30114189864 | C153: MATEROF,SRL | D153: COMPRA DE MATERIAL DE OFICINA E INFORMATICA, PAPEL | F153: 166,711.88 | G153: 7,826,875.06
A154: 2023-03-28 | B154: 30114222937 | C154: MAXBIO PHARMA, SRL | D154: COMPRA DE MATERIAL MEDICO QX | F154: 59,439.99 | G154: 7,767,435.07
A155: 2023-03-28 | B155: 30114264674 | C155: MEDISAN,SRL | D155: COMPRA DE MATERIAL MEDICO QX, PAPEL | F155: 155,866.50 | G155: 7,611,568.57
A156: 2023-03-28 | B156: 30114292892 | C156: MULTISERVICIOS CG, SRL | D156: COMPRA DE MATERIAL MEDICO QX, PAPEL | F156: 22,057.60 | G156: 7,589,510.97
A157: 2023-03-28 | B157: 30114331353 | C157: NINGG COMPANY,SRL | D157: COMPRA DE MEDICAMENTOS | F157: 35,907.15 | G157: 7,553,603.82
A158: 2023-03-28 | B158: 30114390894 | C158: OXAC,SRL | D158: COMPRA DE OXIGENO | F158: 825,217.50 | G158: 6,728,386.32
A159: 2023-03-28 | B159: 30114498712 | C159: PEREZ BARROSO, SRL. | D159: COMPRA DE MEDICAMENTOS | F159: 162,763.50 | G159: 6,565,622.82
A160: 2023-03-28 | B160: 30114529118 | C160: PUNTO DENTAL SPOT JAL,SRL | D160: COMPRA DE MATERIAL MEDICO QX / ODONTOLOGIA | F160: 6,270.00 | G160: 6,559,352.82
A161: 2023-03-28 | B161: 30114556833 | C161: PRODUCTOS MEDICINALES,SRL | D161: COMPRA DE MATERIAL MEDICO QX | F161: 119,261.90 | G161: 6,440,090.92
A162: 2023-03-28 | B162: 30114591623 | C162: RADIFARMA,SRL | D162: COMPRA DE MATERIAL MEDICO QX | F162: 42,149.00 | G162: 6,397,941.92
A163: 2023-03-28 | B163: 30114616254 | C163: RALANSA, S.A. | D163: COMPRA DE MEDICAMENTOS , MATERIAL MEDICO QX | F163: 15,709.20 | G163: 6,382,232.72
A164: 2023-03-28 | B164: 30114691039 | C164: SANOZ FARMACEUTICA,SRL | D164: COMPRA DE MEDICAMENTOS Y MATERIAL MEDICO QX | F164: 815,419.40 | G164: 5,566,813.32
A165: 2023-03-28 | B165: 30114771702 | C165: SERVICIOS E INSTALACIONES TECNICAS,SRL | D165: SERVICIOS DE MANTT.ELEVADOR MES DE FEBRERO 2023 | F165: 7,910.00 | G165: 5,558,903.32
A166: 2023-03-28 | B166: 30114826070 | C166: JOSE SEVERINO PERALTA | D166: COMPRA DE PAPELERIA E IMPRESOS | F166: 264,420.00 | G166: 5,294,483.32
A167: 2023-03-28 | B167: 30114854243 | C167: JOSE SEVERINO PERALTA | D167: COMPRA DE PAPELERIA E IMPRESOS | F167: 229,335.00 | G167: 5,065,148.32
A168: 2023-03-28 | B168: 30114908165 | C168: SILVER PHARMA,SRL | D168: COMPRA DE MEDICAMENTOS | F168: 84,550.00 | G168: 4,980,598.32
A169: 2023-03-28 | B169: 30114952654 | C169: SOLUCIONES & TECNOLOGIAS HABILES, SRL | D169: POR ALQUILER DE EQUIPOS DE FOTOCOPIADORAS | F169: 43,955.07 | G169: 4,936,643.25
A170: 2023-03-28 | B170: 30114987780 | C170: SUPERMERCADO JOSE LUIS, SRL | D170: COMPRA DE ALIMENTOS, ELECTRICO Y MATERIAL DE LIMPIEZA | F170: 16,156.70 | G170: 4,920,486.55
A171: 2023-03-28 | B171: 30115022282 | C171: SLAYERS PEST CONTROL CSPP, SRL | D171: SERVICIOS DE FUMIGACION EN LAMINSTITUCION | F171: 14,790.00 | G171: 4,905,696.55
A172: 2023-03-28 | B172: 30115049790 | C172: UNIQUE REPRESENTACIONES,SRL | D172: COMPRA DE PAPEL TERMICO PARA ELECTRO | F172: 24,872.43 | G172: 4,880,824.12
A173: 2023-03-28 | B173: 30115161436 | C173: VEGA ABREU CLEAN,SRL | D173: COMPRA DE MATERIAL DE LIMPIEZA | F173: 4,859.00 | G173: 4,875,965.12
A174: 2023-03-28 | B174: 30115203190 | C174: VEGAMED, SRL | D174: COMPRA DE MEDICAMENTOS | F174: 28,500.00 | G174: 4,847,465.12
A175: 2023-03-28 | C175: 555158132 | D175: ODONTOLOGIA | E175: 28,600.00 | G175: =+G174+E175 -> 4,876,065.12
A176: 2023-03-28 | C176: 555158133 | D176: ODONTOLOGIA | E176: 4,380.00 | G176: 4,880,445.12
A177: 2023-03-28 | C177: 555158134 | D177: CAFETERIA | E177: 7,125.00 | G177: 4,887,570.12
A178: 2023-03-28 | C178: 555158135 | D178: CAFETERIA | E178: 11,215.00 | G178: 4,898,785.12
A179: 2023-03-28 | B179: 45240000000133 | C179: HOSPITAL RICARDO LIMARDO | D179: PAGO SALARIO NOMINA INTERNA MARZO | F179: 3,032,066.82 | G179: =+G178-F179 -> 1,866,718.30
A180: 2023-03-28 | B180: 45240000000061 | C180: HOSPITAL RICARDO LIMARDO | D180: PAGO COMPLETIVO MARZO 2023 | F180: 692,364.33 | G180: 1,174,353.97
A181: 2023-03-29 | C181: 555156200 | D181: ODONTOLOGIA | E181: 8,010.00 | G181: =+G180+E181 -> 1,182,363.97
A182: 2023-03-29 | C182: 555156201 | D182: ODONTOLOGIA | E182: 22,710.00 | G182: 1,205,073.97
A183: 2023-03-29 | C183: 555156202 | D183: CAFETERIA | E183: 7,400.00 | G183: 1,212,473.97
A184: 2023-03-29 | C184: 555156203 | D184: CAFETERIA | E184: 15,170.00 | G184: 1,227,643.97
A185: 2023-03-29 | B185: 45240000000009 | C185: TRANSFERENCIA BANCO | D185: ARS YUNEN | E185: 168,691.10 | G185: 1,396,335.07
A186: 2023-03-29 | B186: 45240000031739 | C186: TRANSFERENCIA BANCO | D186: ARS YUNEN | E186: 189,238.07 | G186: 1,585,573.14
A187: 2023-03-30 | C187: 526438774 | D187: CAFETERIA | E187: 13,845.00 | G187: 1,599,418.14
A188: 2023-03-30 | C188: 526438775 | D188: CAFETERIA | E188: 8,295.00 | G188: 1,607,713.14
A189: 2023-03-30 | C189: 526438776 | D189: ODONTOLOGIA | E189: 6,200.00 | G189: 1,613,913.14
A190: 2023-03-30 | C190: 526438777 | D190: ODONTOLOGIA | E190: 3,400.00 | G190: 1,617,313.14
A191: 2023-03-30 | B191: 45240000000036 | C191: TRANSFERENCIA BANCO | D191: ARS RESERVAS | E191: 563.51 | G191: 1,617,876.65
A192: 2023-03-31 | C192: 20755105 | D192: ARS CMD | E192: 4,672.00 | G192: 1,622,548.65
A193: 2023-03-31 | C193: 555157283 | D193: CAFETERIA | E193: 8,005.00 | G193: 1,630,553.65
A194: 2023-03-31 | C194: 555157285 | D194: CAFETERIA | E194: 15,425.00 | G194: 1,645,978.65
A195: 2023-03-31 | C195: 555157286 | D195: ODONTOLOGIA | E195: 3,760.00 | G195: 1,649,738.65
A196: 2023-03-31 | C196: 555157287 | D196: ODONTOLOGIA | E196: 3,000.00 | G196: 1,652,738.65
A197: 2023-03-31 | B197: 30158814146 | C197: COLECTOR DE IMPUESTOS INTERNOS | D197: RETENCION MARZO 2023 | F197: 383,145.89 | G197: =+G196-F197 -> 1,269,592.76
C198: BANCO RESERVAS | D198: CARGOS BANCARIOS | F198: 29,536.37 | G198: 1,240,056.39
E199: =SUM(E7:E197) -> 11,730,033.37 | F199: =SUM(F7:F198) -> 19,547,024.40
B200: REALIZADO POR
B202: SUPERVISADO POR
... 1 more rows
